{"text_format":"1","workbook":"xlsx","n_sheets":3,"sheets":["Form. Cotação-Regional Sudeste","INPUTS","Regional Sudeste"],"not_rendered":{"charts":0,"images":3,"macros":1,"external_links":0,"defined_names":3,"comments":1,"pivot_tables":0},"unopened":[],"bounds":{"document_bytes":16777216,"sheet_cells":100000,"rows_first":2000,"rows_last":500,"rows_between":2000,"halvings":0,"cell_chars":16384,"cell_head_chars":4096},"cells_cut":0,"cells_raw":0,"read":"whole","date_system":"1900"}

{"sheet":"Form. Cotação-Regional Sudeste","index":0,"n_rows":150,"n_cols":34,"rows_kept":150,"cut":false,"hidden":false,"merged":[[134,2,134,4],[134,5,134,14],[134,15,134,17],[134,18,134,20],[134,21,134,24],[134,25,134,28],[134,29,134,32],[134,33,134,35],[135,2,135,4],[135,5,135,14],[135,15,135,17],[135,18,135,20],[135,21,135,24],[135,25,135,28],[135,29,135,32],[135,33,135,35],[132,2,132,4],[132,5,132,14],[132,15,132,17],[132,18,132,20],[132,21,132,24],[132,25,132,28],[132,29,132,32],[132,33,132,35],[133,2,133,4],[133,5,133,14],[133,15,133,17],[133,18,133,20],[133,21,133,24],[133,25,133,28],[133,29,133,32],[133,33,133,35],[130,2,130,4],[130,5,130,14],[130,15,130,17],[130,18,130,20],[130,21,130,24],[130,25,130,28],[130,29,130,32],[130,33,130,35],[131,2,131,4],[131,5,131,14],[131,15,131,17],[131,18,131,20],[131,21,131,24],[131,25,131,28],[131,29,131,32],[131,33,131,35],[128,2,128,4],[128,5,128,14],[128,15,128,17],[128,18,128,20],[128,21,128,24],[128,25,128,28],[128,29,128,32],[128,33,128,35],[129,2,129,4],[129,5,129,14],[129,15,129,17],[129,18,129,20],[129,21,129,24],[129,25,129,28],[129,29,129,32],[129,33,129,35],[126,2,126,4],[126,5,126,14],[126,15,126,17],[126,18,126,20],[126,21,126,24],[126,25,126,28],[126,29,126,32],[126,33,126,35],[127,2,127,4],[127,5,127,14],[127,15,127,17],[127,18,127,20],[127,21,127,24],[127,25,127,28],[127,29,127,32],[127,33,127,35],[124,2,124,4],[124,5,124,14],[124,15,124,17],[124,18,124,20],[124,21,124,24],[124,25,124,28],[124,29,124,32],[124,33,124,35],[125,2,125,4],[125,5,125,14],[125,15,125,17],[125,18,125,20],[125,21,125,24],[125,25,125,28],[125,29,125,32],[125,33,125,35],[122,2,122,4],[122,5,122,14],[122,15,122,17],[122,18,122,20],[122,21,122,24],[122,25,122,28],[122,29,122,32],[122,33,122,35],[123,2,123,4],[123,5,123,14],[123,15,123,17],[123,18,123,20],[123,21,123,24],[123,25,123,28],[123,29,123,32],[123,33,123,35],[120,2,120,4],[120,5,120,14],[120,15,120,17],[120,18,120,20],[120,21,120,24],[120,25,120,28],[120,29,120,32],[120,33,120,35],[121,2,121,4],[121,5,121,14],[121,15,121,17],[121,18,121,20],[121,21,121,24],[121,25,121,28],[121,29,121,32],[121,33,121,35],[118,2,118,4],[118,5,118,14],[118,15,118,17],[118,18,118,20],[118,21,118,24],[118,25,118,28],[118,29,118,32],[118,33,118,35],[119,2,119,4],[119,5,119,14],[119,15,119,17],[119,18,119,20],[119,21,119,24],[119,25,119,28],[119,29,119,32],[119,33,119,35],[116,2,116,4],[116,5,116,14],[116,15,116,17],[116,18,116,20],[116,21,116,24],[116,25,116,28],[116,29,116,32],[116,33,116,35],[117,2,117,4],[117,5,117,14],[117,15,117,17],[117,18,117,20],[117,21,117,24],[117,25,117,28],[117,29,117,32],[117,33,117,35],[114,2,114,4],[114,5,114,14],[114,15,114,17],[114,18,114,20],[114,21,114,24],[114,25,114,28],[114,29,114,32],[114,33,114,35],[115,2,115,4],[115,5,115,14],[115,15,115,17],[115,18,115,20],[115,21,115,24],[115,25,115,28],[115,29,115,32],[115,33,115,35],[112,2,112,4],[112,5,112,14],[112,15,112,17],[112,18,112,20],[112,21,112,24],[112,25,112,28],[112,29,112,32],[112,33,112,35],[113,2,113,4],[113,5,113,14],[113,15,113,17],[113,18,113,20],[113,21,113,24],[113,25,113,28],[113,29,113,32],[113,33,113,35],[63,2,63,8],[93,2,93,7],[96,1,97,9],[96,13,97,15],[96,16,97,35],[96,10,97,11],[94,2,94,7],[93,11,93,17],[93,21,93,35],[94,11,94,17],[94,21,94,35],[92,2,92,7],[80,1,80,6],[80,7,80,9],[80,10,80,11],[80,12,80,23],[80,24,80,27],[80,28,80,31],[81,1,81,6],[81,7,81,9],[81,10,81,11],[81,12,81,23],[81,24,81,27],[81,28,81,31],[92,21,92,35],[84,13,84,14],[88,8,88,35],[90,2,90,7],[91,2,91,7],[66,1,66,6],[66,10,66,11],[66,12,66,23],[66,24,66,27],[66,28,66,31],[69,1,69,6],[69,7,69,9],[69,10,69,11],[69,12,69,23],[69,24,69,27],[69,28,69,31],[67,28,67,31],[68,1,68,6],[68,7,68,9],[68,10,68,11],[68,12,68,23],[68,24,68,27],[68,28,68,31],[70,1,70,6],[70,7,70,9],[70,10,70,11],[70,12,70,23],[70,24,70,27],[70,28,70,31],[71,1,71,6],[71,7,71,9],[71,10,71,11],[71,12,71,23],[71,24,71,27],[71,28,71,31],[73,7,73,9],[73,10,73,11],[73,12,73,23],[73,24,73,27],[73,28,73,31],[78,1,78,6],[78,7,78,9],[78,10,78,11],[78,12,78,23],[78,24,78,27],[78,28,78,31],[76,7,76,9],[76,10,76,11],[76,12,76,23],[76,24,76,27],[76,28,76,31],[77,1,77,6],[77,7,77,9],[79,1,79,6],[79,7,79,9],[79,10,79,11],[79,12,79,23],[79,24,79,27],[79,28,79,31],[74,1,74,6],[74,7,74,9],[74,10,74,11],[74,12,74,23],[74,24,74,27],[74,28,74,31],[75,1,75,6],[75,7,75,9],[75,10,75,11],[75,12,75,23],[75,24,75,27],[75,28,75,31],[76,1,76,6],[77,10,77,11],[77,12,77,23],[77,24,77,27],[77,28,77,31],[30,20,30,35],[39,20,39,27],[40,20,40,27],[41,20,41,27],[42,20,42,27],[36,2,36,18],[42,13,42,14],[59,5,59,6],[60,5,60,6],[59,23,59,24],[53,12,53,14],[54,12,54,14],[55,12,55,14],[56,12,56,14],[53,21,53,35],[54,21,54,35],[55,21,55,35],[56,21,56,35],[30,9,30,10],[43,20,43,27],[44,20,44,27],[45,20,45,27],[46,20,46,27],[47,20,47,27],[48,20,48,27],[48,13,48,14],[48,17,48,18],[47,17,47,18],[46,17,46,18],[45,17,45,18],[44,17,44,18],[43,17,43,18],[42,17,42,18],[43,15,43,16],[44,15,44,16],[45,15,45,16],[46,15,46,16],[47,15,47,16],[48,15,48,16],[37,4,37,6],[48,2,48,3],[47,2,47,3],[46,2,46,3],[45,2,45,3],[44,2,44,3],[43,2,43,3],[42,2,42,3],[41,2,41,3],[40,2,40,3],[39,2,39,3],[37,13,37,18],[38,15,38,16],[44,13,44,14],[45,13,45,14],[46,13,46,14],[47,13,47,14],[38,13,38,14],[39,13,39,14],[40,13,40,14],[41,13,41,14],[41,17,41,18],[40,17,40,18],[39,17,39,18],[38,17,38,18],[39,15,39,16],[40,15,40,16],[43,13,43,14],[29,1,29,13],[25,1,25,13],[15,17,15,20],[37,29,37,33],[12,1,12,35],[15,1,15,15],[15,22,15,35],[18,1,18,7],[20,1,20,35],[22,4,22,16],[26,19,26,25],[28,29,28,35],[24,4,24,19],[24,23,24,25],[24,30,24,35],[22,29,22,35],[22,20,22,25],[26,29,26,35],[28,20,28,25],[26,4,26,16],[28,4,28,16],[37,28,38,28],[37,20,38,27],[37,2,38,3],[32,1,32,7],[31,1,31,13],[33,1,33,7],[37,10,37,12],[37,7,37,9],[49,32,49,33],[48,32,48,33],[47,32,47,33],[46,32,46,33],[45,32,45,33],[44,32,44,33],[43,32,43,33],[42,32,42,33],[41,32,41,33],[40,32,40,33],[39,32,39,33],[38,32,38,33],[32,8,32,13],[49,2,49,3],[49,13,49,14],[49,15,49,16],[49,17,49,18],[41,15,41,16],[42,15,42,16],[36,20,36,33],[0,1,6,3],[106,1,106,13],[33,8,33,13],[23,1,23,13],[86,6,86,35],[89,8,89,10],[90,8,90,10],[91,8,91,10],[92,8,92,10],[93,8,93,10],[94,8,94,10],[90,11,90,17],[90,18,90,20],[90,21,90,35],[91,18,91,20],[92,18,92,20],[93,18,93,20],[94,18,94,20],[91,11,91,17],[91,21,91,35],[92,11,92,17],[0,29,6,35],[0,8,6,28],[61,23,61,28],[61,33,61,35],[111,5,111,14],[111,15,111,17],[111,18,111,20],[111,21,111,24],[111,25,111,28],[111,29,111,32],[111,33,111,35],[61,5,61,6],[100,1,105,35],[67,1,67,6],[66,7,66,9],[67,7,67,9],[67,10,67,11],[67,12,67,23],[67,24,67,27],[72,1,72,6],[72,7,72,9],[72,10,72,11],[72,12,72,23],[72,24,72,27],[72,28,72,31],[73,1,73,6],[138,2,138,4],[138,5,138,14],[138,15,138,17],[138,18,138,20],[138,21,138,24],[138,25,138,28],[138,29,138,32],[138,33,138,35],[139,2,139,4],[139,5,139,14],[139,15,139,17],[139,18,139,20],[139,21,139,24],[139,25,139,28],[139,29,139,32],[139,33,139,35],[140,2,140,4],[140,5,140,14],[140,15,140,17],[140,18,140,20],[140,21,140,24],[140,25,140,28],[140,29,140,32],[140,33,140,35],[141,2,141,4],[141,5,141,14],[141,15,141,17],[141,18,141,20],[141,21,141,24],[141,25,141,28],[141,29,141,32],[141,33,141,35],[142,2,142,4],[142,5,142,14],[142,15,142,17],[142,18,142,20],[142,21,142,24],[142,25,142,28],[142,29,142,32],[142,33,142,35],[143,2,143,4],[143,5,143,14],[143,15,143,17],[143,18,143,20],[143,21,143,24],[143,25,143,28],[143,29,143,32],[143,33,143,35],[144,2,144,4],[144,5,144,14],[144,15,144,17],[144,18,144,20],[144,21,144,24],[144,25,144,28],[144,29,144,32],[144,33,144,35],[145,2,145,4],[145,5,145,14],[145,15,145,17],[145,18,145,20],[145,21,145,24],[145,25,145,28],[145,29,145,32],[145,33,145,35],[146,2,146,4],[146,5,146,14],[146,15,146,17],[146,18,146,20],[146,21,146,24],[146,25,146,28],[146,29,146,32],[146,33,146,35],[147,2,147,4],[147,5,147,14],[147,15,147,17],[147,18,147,20],[147,21,147,24],[147,25,147,28],[147,29,147,32],[147,33,147,35],[148,2,148,4],[148,5,148,14],[148,15,148,17],[148,18,148,20],[148,21,148,24],[148,25,148,28],[148,29,148,32],[148,33,148,35],[149,2,149,4],[149,5,149,14],[149,15,149,17],[149,18,149,20],[149,21,149,24],[149,25,149,28],[149,29,149,32],[149,33,149,35]]}
[null,null,null,null,null,null,null,null,"FORMULÁRIO  DE COTAÇÃO"]
[]
[]
[]
[]
[]
[]
[]
[null,"ORIENTAÇÕES PARA PREENCHIMENTO"]
[null,"Os campos marcados com asterisco (*) são de preenchimento obrigatório"]
[null,"Para seleção dos produtos da operadora, utilizar o filtro da lista na página 2 deste formulário."]
[]
[null,"DADOS DA CORRETORA"]
[]
[null,"Nome da Corretora *",null,null,null,null,null,null,null,null,null,null,null,null,null,null,null,"CPF do Corretor",null,null,null,null,"Nome completo do corretor"]
[]
[]
[null,"Agenciamento e Comissão Vitalícia (%) *"]
[null,"100% + 5%"]
[]
[null,"DADOS DA EMPRESA PROPONENTE"]
[]
[null,"Razão Social: *",null,null,null,null,null,null,null,null,null,null,null,null,null,null,null,null,"CNPJ: * ",null,null,null,null,null,null,null,null,"CNAE: *"]
[]
[null,"Logradouro: *",null,null,null,null,null,null,null,null,null,null,null,null,null,null,null,null,null,null,null,"Número: *",null,null,null,null,null,"Complemento:"]
[]
[null,"Município: *",null,null,null,null,null,null,null,null,null,null,null,null,null,null,null,null,"UF: *",null,null,null,null,null,null,null,null,"CEP: *"]
[]
[null,"Contato: ",null,null,null,null,null,null,null,null,null,null,null,null,null,null,null,null,"Cargo:",null,null,null,null,null,null,null,null,"Email:"]
[]
[null,"Possui filial fora do município da matriz? *",null,null,null,null,null,null,null,null,null,null,"Favor preencher município e UF das filiais"]
[]
[null,"            MÉDICA:"]
[null,"ODONTOLÓGICA:"]
[null,"PERFIL DE DISTRIBUIÇÃO"]
[]
[null,null,"DISTRIBUIÇÃO POR SEXO/FAIXA ETÁRIA *",null,null,null,null,null,null,null,null,null,null,null,null,null,null,null,null,null,"DISTRIBUIÇÃO GEOGRÁFICA DOS BENEFICIÁRIOS *"]
[null,null,"FAIXA\nETÁRIA",null,"TITULARES",null,null,"DEPENDENTES",null,null,"AGREGADOS",null,null,"TOTAL",null,null,null,null,null,null,"MUNICÍPIO",null,null,null,null,null,null,null,"UF","QUANTIDADE"]
[null,null,null,null,"Masc.","Fem.","S","Masc.","Fem.","S","Masc.","Fem.","S","Masc.",null,"Fem.",null,"S",null,null,null,null,null,null,null,null,null,null,null,"TIT.","DEP.","AGR.","S"]
[null,null,"0-18",null,null,null,{"$f":"SUM(E40:F40)","v":0},null,null,{"$f":"SUM(H40:I40)","v":0},null,null,{"$f":"SUM(K40:L40)","v":0},{"$f":"E40+H40+K40","v":0},null,{"$f":"F40+I40+L40","v":0},null,{"$f":"SUM(N40:P40)","v":0},null,null,null,null,null,null,null,null,null,null,null,null,null,null,{"$f":"SUM(AD40:AF40)","v":0}]
[null,null,"19-23",null,null,null,{"$f":"SUM(E41:F41)","v":0},null,null,{"$f":"SUM(H41:I41)","v":0},null,null,{"$f":"SUM(K41:L41)","v":0},{"$f":"E41+H41+K41","v":0},null,0,null,0,null,null,null,null,null,null,null,null,null,null,null,null,null,null,0]
[null,null,"24-28",null,null,null,0,null,null,0,null,null,0,0,null,0,null,0,null,null,null,null,null,null,null,null,null,null,null,null,null,null,0]
[null,null,"29-33",null,null,null,0,null,null,0,null,null,0,0,null,0,null,0,null,null,null,null,null,null,null,null,null,null,null,null,null,null,0]
[null,null,"34-38",null,null,null,0,null,null,0,null,null,0,0,null,0,null,0,null,null,null,null,null,null,null,null,null,null,null,null,null,null,0]
[null,null,"39-43",null,null,null,0,null,null,0,null,null,0,0,null,0,null,0,null,null,null,null,null,null,null,null,null,null,null,null,null,null,0]
[null,null,"44-48",null,null,null,0,null,null,0,null,null,0,0,null,0,null,0,null,null,null,null,null,null,null,null,null,null,null,null,null,null,0]
[null,null,"49-53",null,null,null,0,null,null,0,null,null,0,0,null,0,null,0,null,null,null,null,null,null,null,null,null,null,null,null,null,null,0]
[null,null,"54-58",null,null,null,0,null,null,0,null,null,0,0,null,0,null,0,null,null,null,null,null,null,null,null,null,null,null,null,null,null,0]
[null,null,"59 ou +",null,null,null,0,null,null,0,null,null,0,0,null,0,null,0,null,null,null,null,null,null,null,null,null,null,null,null,null,null,0]
[null,null,"Total",null,{"$f":"SUM(E40:E49)","v":0},{"$f":"SUM(F40:F49)","v":0},{"$f":"SUM(G40:G49)","v":0},0,0,0,0,0,0,{"$f":"SUM(N40:N49)","v":0},null,{"$f":"SUM(P40:P49)","v":0},null,{"$f":"SUM(R40:R49)","v":0},null,null,null,null,null,null,null,null,null,null,null,{"$f":"SUM(AD40:AD49)","v":0},{"$f":"SUM(AE40:AE49)","v":0},{"$f":"SUM(AF40:AF49)","v":0},{"$f":"SUM(AG40:AG49)","v":0}]
[]
[null,"QUESTIONÁRIO DE AVALIAÇÃO DO PERFIL DE COTAÇÃO"]
[null,"Como será o critério de custeio da empresa do plano de saúde para:"]
[null,null,"Mensalidade para os Titulares?",null,null,null,null,null,null,null,null,null,null,null,null,null,{"$f":"IF(M54=\"SIM\",\"Informar modelo pretendido:\",\"\")","v":""}]
[null,null,"Coparticipação para os Titulares?",null,null,null,null,null,null,null,null,null,null,null,null,null,{"$f":"IF(M55=\"SIM\",\"Informar modelo pretendido:\",\"\")","v":""}]
[null,null,"Mensalidade para os Dependentes e/ou Agregados?",null,null,null,null,null,null,null,null,null,null,null,null,null,""]
[null,null,"Coparticipação para os Dependentes e/ou Agregados?",null,null,null,null,null,null,null,null,null,null,null,null,null,""]
[]
[null,"Adesão será compulsória?",null,null,null,null,null,null,null,null,null,"Existem colaboradores na condição (marcar com X): ",null,null,null,null,null,null,null,null,null,null,"Existem tercerizados na solicitação? *",null,null,null,null,null,null,null,"Distribuição etária desejada:*"]
[null,null,"Titulares *",null,null,null,null,null,null,null,null,null,null,null,"Afastados",null,null,null,null,null,null,null,{"$f":"IF(X59=\"SIM\",\"Quanto são?\",\"\")","v":""},null,null,null,null,null,null,null,{"$f":"IF(AF61=\"SIM\",\"Quanto são?\",\"\")","v":""},null,"10 faixas etárias"]
[null,null,"Dependentes*",null,null,null,null,null,null,null,null,null,null,null,"Gestantes",null,null,null,null,null,null,null,null,{"$f":"IF(X60=\"SIM\",\"Quanto são?\",\"\")","v":""},null,null,null,null,null,null,{"$f":"IF(AF62=\"SIM\",\"Quanto são?\",\"\")","v":""},null,"Per capíta"]
[null,null,"Agregados *",null,null,null,null,null,null,null,null,null,null,null,"Em tratamento de alta complexidade",null,null,null,null,null,null,null,{"$f":"IF(X61=\"SIM\",\"Quanto são?\",\"\")","v":""},null,null,null,null,null,null,null,{"$f":"IF(AF65=\"SIM\",\"Quanto são?\",\"\")","v":""},null,"Outro:",{"$f":"IF(AH61=\"SIM\",\"Quanto são?\",\"\")","v":""}]
[null,null,{"$f":"IF(COUNTIF((F60:G62),\"Não\")>0,\"NOTA! INFORMAR ESTIMATIVA DE ADESÃO\",\"\")","v":""},null,null,null,null,null,null,null,null,null,null,null,"Em internação domiciliar"]
[null,null,null,null,null,null,null,null,null,null,null,null,null,null,"Em internação hospitalar"]
[]
[null,"Condições dos beneficiários da proposta",null,null,null,null,null,null,null,null,{"$f":"IF((COUNTBLANK(N60:N64))<5,\"NOTA! OBRIGATÓRIO PREENCHER EM FUNÇÃO DA RESPOSTA ACIMA\",\"\")","v":""}]
[null,"Tipificação",null,null,null,null,null,"Idade Atual",null,null,"Sexo",null,"CID",null,null,null,null,null,null,null,null,null,null,null,"Data de início",null,null,null,"Data de término previsto"]
[]
[]
[]
[]
[]
[]
[]
[]
[]
[]
[]
[]
[]
[]
[]
[]
[null,"HISTÓRICO DO PLANO DE SAÚDE DO PROPONENTE"]
[null,"Possui histórico que possa compartilhar suas informações?",null,null,null,null,null,null,null,null,null,null,null,null,null,null,{"$f":"IF(N85=\"sim\",\"NOTA: Obrigatório preencher as informações abaixo\",\"\")","v":""}]
[]
[null,"Qual a sinistralidade atual?"]
[]
[null,"Sobre os produtos atuais:"]
[null,null,"Nome da Operadora",null,null,null,null,null,"Nº Registro ANS",null,null,"Nome do produto",null,null,null,null,null,null,"Acomodação",null,null,"Condição de preço praticada e demais particularidades"]
[]
[]
[]
[]
[]
[]
[null,"Haverá migração compulsória da massa de beneficiários do contrato anterior?",null,null,null,null,null,null,null,null,null,null,null,"Como se dará o esse processo?"]
[]
[]
[null,"OUTRAS INFORMAÇÕES RELEVANTES PARA COTAÇÃO"]
[]
[]
[]
[]
[]
[]
[]
[null,"PRODUTOS A SEREM COTADOS"]
[null,"Lista de produtos ativos em 10/2022, marcar com um X na primeira coluna."]
[]
[null,null,{"$f":"'Regional Sudeste'!C2","v":"Samp Espírito Santo Assistência Médica S.A."}]
[null,null,"Nº Registro",null,null,"Nome Comercial",null,null,null,null,null,null,null,null,null,"Contratação",null,null,"Segmentação",null,null,"Abrangência",null,null,null,"Fator Moderador",null,null,null,"Acomodação",null,null,null,"Reembolso"]
[null,"",{"$f":"'Regional Sudeste'!A2","v":475603167},null,null,{"$f":"'Regional Sudeste'!B2","v":"AMBULATORIAL I ES"},null,null,null,null,null,null,null,null,null,{"$f":"'Regional Sudeste'!D2","v":"Empresarial"},null,null,{"$f":"'Regional Sudeste'!E2","v":"Ambulatorial"},null,null,{"$f":"'Regional Sudeste'!F2","v":"Estadual"},null,null,null,{"$f":"'Regional Sudeste'!G2","v":"Ausente"},null,null,null,{"$f":"'Regional Sudeste'!H2","v":"Não se aplica"},null,null,null,{"$f":"'Regional Sudeste'!I2","v":"Ausente"}]
[null,null,{"$f":"'Regional Sudeste'!A3","v":478358171},null,null,{"$f":"'Regional Sudeste'!B3","v":"AMBULATORIAL I ES PARTICIPATIVO"},null,null,null,null,null,null,null,null,null,{"$f":"'Regional Sudeste'!D3","v":"Empresarial"},null,null,{"$f":"'Regional Sudeste'!E3","v":"Ambulatorial"},null,null,{"$f":"'Regional Sudeste'!F3","v":"Estadual"},null,null,null,{"$f":"'Regional Sudeste'!G3","v":"Co-participacão"},null,null,null,{"$f":"'Regional Sudeste'!H3","v":"Não se aplica"},null,null,null,{"$f":"'Regional Sudeste'!I3","v":"Ausente"}]
[null,null,{"$f":"'Regional Sudeste'!A4","v":483131194},null,null,{"$f":"'Regional Sudeste'!B4","v":"ESSENCIAL SUL COM COPART QC"},null,null,null,null,null,null,null,null,null,{"$f":"'Regional Sudeste'!D4","v":"Empresarial"},null,null,{"$f":"'Regional Sudeste'!E4","v":"A + H c/ obst."},null,null,{"$f":"'Regional Sudeste'!F4","v":"Grupo de municípios"},null,null,null,{"$f":"'Regional Sudeste'!G4","v":"Co-participacão"},null,null,null,{"$f":"'Regional Sudeste'!H4","v":"Coletiva"},null,null,null,{"$f":"'Regional Sudeste'!I4","v":"Ausente"}]
[null,null,{"$f":"'Regional Sudeste'!A5","v":483130196},null,null,{"$f":"'Regional Sudeste'!B5","v":"ESSENCIAL SUL COM COPART QP"},null,null,null,null,null,null,null,null,null,{"$f":"'Regional Sudeste'!D5","v":"Empresarial"},null,null,{"$f":"'Regional Sudeste'!E5","v":"A + H c/ obst."},null,null,{"$f":"'Regional Sudeste'!F5","v":"Grupo de municípios"},null,null,null,{"$f":"'Regional Sudeste'!G5","v":"Co-participacão"},null,null,null,{"$f":"'Regional Sudeste'!H5","v":"Individual"},null,null,null,{"$f":"'Regional Sudeste'!I5","v":"Ausente"}]
[null,null,{"$f":"'Regional Sudeste'!A6","v":489863210},null,null,{"$f":"'Regional Sudeste'!B6","v":"ESSENCIAL SUL II COM COPART QC"},null,null,null,null,null,null,null,null,null,{"$f":"'Regional Sudeste'!D6","v":"Empresarial"},null,null,{"$f":"'Regional Sudeste'!E6","v":"A + H c/ obst."},null,null,{"$f":"'Regional Sudeste'!F6","v":"Grupo de municípios"},null,null,null,{"$f":"'Regional Sudeste'!G6","v":"Co-participacão"},null,null,null,{"$f":"'Regional Sudeste'!H6","v":"Coletiva"},null,null,null,{"$f":"'Regional Sudeste'!I6","v":"Ausente"}]
[null,null,{"$f":"'Regional Sudeste'!A7","v":489864218},null,null,{"$f":"'Regional Sudeste'!B7","v":"ESSENCIAL SUL II COM COPART QP"},null,null,null,null,null,null,null,null,null,{"$f":"'Regional Sudeste'!D7","v":"Empresarial"},null,null,{"$f":"'Regional Sudeste'!E7","v":"A + H c/ obst."},null,null,{"$f":"'Regional Sudeste'!F7","v":"Grupo de municípios"},null,null,null,{"$f":"'Regional Sudeste'!G7","v":"Co-participacão"},null,null,null,{"$f":"'Regional Sudeste'!H7","v":"Individual"},null,null,null,{"$f":"'Regional Sudeste'!I7","v":"Ausente"}]
[null,null,{"$f":"'Regional Sudeste'!A8","v":483133191},null,null,{"$f":"'Regional Sudeste'!B8","v":"ESSENCIAL VIX COM COPART QC"},null,null,null,null,null,null,null,null,null,{"$f":"'Regional Sudeste'!D8","v":"Empresarial"},null,null,{"$f":"'Regional Sudeste'!E8","v":"A + H c/ obst."},null,null,{"$f":"'Regional Sudeste'!F8","v":"Grupo de municípios"},null,null,null,{"$f":"'Regional Sudeste'!G8","v":"Co-participacão"},null,null,null,{"$f":"'Regional Sudeste'!H8","v":"Coletiva"},null,null,null,{"$f":"'Regional Sudeste'!I8","v":"Ausente"}]
[null,null,{"$f":"'Regional Sudeste'!A9","v":483135197},null,null,{"$f":"'Regional Sudeste'!B9","v":"IDEAL COM COPART QC"},null,null,null,null,null,null,null,null,null,{"$f":"'Regional Sudeste'!D9","v":"Empresarial"},null,null,{"$f":"'Regional Sudeste'!E9","v":"A + H c/ obst."},null,null,{"$f":"'Regional Sudeste'!F9","v":"Grupo de municípios"},null,null,null,{"$f":"'Regional Sudeste'!G9","v":"Co-participacão"},null,null,null,{"$f":"'Regional Sudeste'!H9","v":"Coletiva"},null,null,null,{"$f":"'Regional Sudeste'!I9","v":"Ausente"}]
[null,null,{"$f":"'Regional Sudeste'!A10","v":483134199},null,null,{"$f":"'Regional Sudeste'!B10","v":"IDEAL COM COPART QP"},null,null,null,null,null,null,null,null,null,{"$f":"'Regional Sudeste'!D10","v":"Empresarial"},null,null,{"$f":"'Regional Sudeste'!E10","v":"A + H c/ obst."},null,null,{"$f":"'Regional Sudeste'!F10","v":"Grupo de municípios"},null,null,null,{"$f":"'Regional Sudeste'!G10","v":"Co-participacão"},null,null,null,{"$f":"'Regional Sudeste'!H10","v":"Individual"},null,null,null,{"$f":"'Regional Sudeste'!I10","v":"Ausente"}]
[null,null,{"$f":"'Regional Sudeste'!A11","v":484956206},null,null,{"$f":"'Regional Sudeste'!B11","v":"IDEAL ES COM COPART QC"},null,null,null,null,null,null,null,null,null,{"$f":"'Regional Sudeste'!D11","v":"Empresarial"},null,null,{"$f":"'Regional Sudeste'!E11","v":"A + H c/ obst."},null,null,{"$f":"'Regional Sudeste'!F11","v":"Estadual"},null,null,null,{"$f":"'Regional Sudeste'!G11","v":"Co-participacão"},null,null,null,{"$f":"'Regional Sudeste'!H11","v":"Coletiva"},null,null,null,{"$f":"'Regional Sudeste'!I11","v":"Ausente"}]
[null,null,{"$f":"'Regional Sudeste'!A12","v":484955208},null,null,{"$f":"'Regional Sudeste'!B12","v":"IDEAL ES COM COPART QP"},null,null,null,null,null,null,null,null,null,{"$f":"'Regional Sudeste'!D12","v":"Empresarial"},null,null,{"$f":"'Regional Sudeste'!E12","v":"A + H c/ obst."},null,null,{"$f":"'Regional Sudeste'!F12","v":"Estadual"},null,null,null,{"$f":"'Regional Sudeste'!G12","v":"Co-participacão"},null,null,null,{"$f":"'Regional Sudeste'!H12","v":"Individual"},null,null,null,{"$f":"'Regional Sudeste'!I12","v":"Ausente"}]
[null,null,{"$f":"'Regional Sudeste'!A13","v":487130208},null,null,{"$f":"'Regional Sudeste'!B13","v":"SAMP EXECUTIVO NACIONAL COM COPART QC"},null,null,null,null,null,null,null,null,null,{"$f":"'Regional Sudeste'!D13","v":"Empresarial"},null,null,{"$f":"'Regional Sudeste'!E13","v":"A + H c/ obst."},null,null,{"$f":"'Regional Sudeste'!F13","v":"Nacional"},null,null,null,{"$f":"'Regional Sudeste'!G13","v":"Co-participacão"},null,null,null,{"$f":"'Regional Sudeste'!H13","v":"Coletiva"},null,null,null,{"$f":"'Regional Sudeste'!I13","v":"Ausente"}]
[null,null,{"$f":"'Regional Sudeste'!A14","v":487131206},null,null,{"$f":"'Regional Sudeste'!B14","v":"SAMP EXECUTIVO NACIONAL COM COPART QP"},null,null,null,null,null,null,null,null,null,{"$f":"'Regional Sudeste'!D14","v":"Empresarial"},null,null,{"$f":"'Regional Sudeste'!E14","v":"A + H c/ obst."},null,null,{"$f":"'Regional Sudeste'!F14","v":"Nacional"},null,null,null,{"$f":"'Regional Sudeste'!G14","v":"Co-participacão"},null,null,null,{"$f":"'Regional Sudeste'!H14","v":"Individual"},null,null,null,{"$f":"'Regional Sudeste'!I14","v":"Ausente"}]
[null,null,{"$f":"'Regional Sudeste'!A15","v":487129204},null,null,{"$f":"'Regional Sudeste'!B15","v":"SAMP NACIONAL COM COPART QC"},null,null,null,null,null,null,null,null,null,{"$f":"'Regional Sudeste'!D15","v":"Empresarial"},null,null,{"$f":"'Regional Sudeste'!E15","v":"A + H c/ obst."},null,null,{"$f":"'Regional Sudeste'!F15","v":"Nacional"},null,null,null,{"$f":"'Regional Sudeste'!G15","v":"Co-participacão"},null,null,null,{"$f":"'Regional Sudeste'!H15","v":"Coletiva"},null,null,null,{"$f":"'Regional Sudeste'!I15","v":"Ausente"}]
[null,null,{"$f":"'Regional Sudeste'!A16","v":487128206},null,null,{"$f":"'Regional Sudeste'!B16","v":"SAMP NACIONAL COM COPART QP"},null,null,null,null,null,null,null,null,null,{"$f":"'Regional Sudeste'!D16","v":"Empresarial"},null,null,{"$f":"'Regional Sudeste'!E16","v":"A + H c/ obst."},null,null,{"$f":"'Regional Sudeste'!F16","v":"Nacional"},null,null,null,{"$f":"'Regional Sudeste'!G16","v":"Co-participacão"},null,null,null,{"$f":"'Regional Sudeste'!H16","v":"Individual"},null,null,null,{"$f":"'Regional Sudeste'!I16","v":"Ausente"}]
[null,null,{"$f":"'Regional Sudeste'!A17","v":483127196},null,null,{"$f":"'Regional Sudeste'!B17","v":"SUPERIOR COM COPART QC"},null,null,null,null,null,null,null,null,null,{"$f":"'Regional Sudeste'!D17","v":"Empresarial"},null,null,{"$f":"'Regional Sudeste'!E17","v":"A + H c/ obst."},null,null,{"$f":"'Regional Sudeste'!F17","v":"Estadual"},null,null,null,{"$f":"'Regional Sudeste'!G17","v":"Co-participacão"},null,null,null,{"$f":"'Regional Sudeste'!H17","v":"Coletiva"},null,null,null,{"$f":"'Regional Sudeste'!I17","v":"Ausente"}]
[null,null,{"$f":"'Regional Sudeste'!A18","v":483128194},null,null,{"$f":"'Regional Sudeste'!B18","v":"SUPERIOR COM COPART QP"},null,null,null,null,null,null,null,null,null,{"$f":"'Regional Sudeste'!D18","v":"Empresarial"},null,null,{"$f":"'Regional Sudeste'!E18","v":"A + H c/ obst."},null,null,{"$f":"'Regional Sudeste'!F18","v":"Estadual"},null,null,null,{"$f":"'Regional Sudeste'!G18","v":"Co-participacão"},null,null,null,{"$f":"'Regional Sudeste'!H18","v":"Individual"},null,null,null,{"$f":"'Regional Sudeste'!I18","v":"Ausente"}]
[null,null,{"$f":"'Regional Sudeste'!A19","v":489562212},null,null,{"$f":"'Regional Sudeste'!B19","v":"SUPERIOR MAIS COM COPART QC"},null,null,null,null,null,null,null,null,null,{"$f":"'Regional Sudeste'!D19","v":"Empresarial"},null,null,{"$f":"'Regional Sudeste'!E19","v":"A + H c/ obst."},null,null,{"$f":"'Regional Sudeste'!F19","v":"Estadual"},null,null,null,{"$f":"'Regional Sudeste'!G19","v":"Co-participacão"},null,null,null,{"$f":"'Regional Sudeste'!H19","v":"Coletiva"},null,null,null,{"$f":"'Regional Sudeste'!I19","v":"Ausente"}]
[null,null,{"$f":"'Regional Sudeste'!A20","v":489558214},null,null,{"$f":"'Regional Sudeste'!B20","v":"SUPERIOR MAIS COM COPART QP"},null,null,null,null,null,null,null,null,null,{"$f":"'Regional Sudeste'!D20","v":"Empresarial"},null,null,{"$f":"'Regional Sudeste'!E20","v":"A + H c/ obst."},null,null,{"$f":"'Regional Sudeste'!F20","v":"Estadual"},null,null,null,{"$f":"'Regional Sudeste'!G20","v":"Co-participacão"},null,null,null,{"$f":"'Regional Sudeste'!H20","v":"Individual"},null,null,null,{"$f":"'Regional Sudeste'!I20","v":"Ausente"}]
[null,null,{"$f":"'Regional Sudeste'!A21","v":489556218},null,null,{"$f":"'Regional Sudeste'!B21","v":"SUPERIOR MAIS SEM COPART QC"},null,null,null,null,null,null,null,null,null,{"$f":"'Regional Sudeste'!D21","v":"Empresarial"},null,null,{"$f":"'Regional Sudeste'!E21","v":"A + H c/ obst."},null,null,{"$f":"'Regional Sudeste'!F21","v":"Estadual"},null,null,null,{"$f":"'Regional Sudeste'!G21","v":"Ausente"},null,null,null,{"$f":"'Regional Sudeste'!H21","v":"Coletiva"},null,null,null,{"$f":"'Regional Sudeste'!I21","v":"Ausente"}]
[null,null,{"$f":"'Regional Sudeste'!A22","v":489557216},null,null,{"$f":"'Regional Sudeste'!B22","v":"SUPERIOR MAIS SEM COPART QP"},null,null,null,null,null,null,null,null,null,{"$f":"'Regional Sudeste'!D22","v":"Empresarial"},null,null,{"$f":"'Regional Sudeste'!E22","v":"A + H c/ obst."},null,null,{"$f":"'Regional Sudeste'!F22","v":"Estadual"},null,null,null,{"$f":"'Regional Sudeste'!G22","v":"Ausente"},null,null,null,{"$f":"'Regional Sudeste'!H22","v":"Individual"},null,null,null,{"$f":"'Regional Sudeste'!I22","v":"Ausente"}]
[null,null,{"$f":"'Regional Sudeste'!A23","v":483129192},null,null,{"$f":"'Regional Sudeste'!B23","v":"SUPERIOR SEM COPART QC"},null,null,null,null,null,null,null,null,null,{"$f":"'Regional Sudeste'!D23","v":"Empresarial"},null,null,{"$f":"'Regional Sudeste'!E23","v":"A + H c/ obst."},null,null,{"$f":"'Regional Sudeste'!F23","v":"Estadual"},null,null,null,{"$f":"'Regional Sudeste'!G23","v":"Ausente"},null,null,null,{"$f":"'Regional Sudeste'!H23","v":"Coletiva"},null,null,null,{"$f":"'Regional Sudeste'!I23","v":"Ausente"}]
[null,null,{"$f":"'Regional Sudeste'!A24","v":483126198},null,null,{"$f":"'Regional Sudeste'!B24","v":"SUPERIOR SEM COPART QP"},null,null,null,null,null,null,null,null,null,{"$f":"'Regional Sudeste'!D24","v":"Empresarial"},null,null,{"$f":"'Regional Sudeste'!E24","v":"A + H c/ obst."},null,null,{"$f":"'Regional Sudeste'!F24","v":"Estadual"},null,null,null,{"$f":"'Regional Sudeste'!G24","v":"Ausente"},null,null,null,{"$f":"'Regional Sudeste'!H24","v":"Individual"},null,null,null,{"$f":"'Regional Sudeste'!I24","v":"Ausente"}]
[null,null,{"$f":"'Regional Sudeste'!A25","v":485448209},null,null,{"$f":"'Regional Sudeste'!B25","v":"VITAL COM COPART QC"},null,null,null,null,null,null,null,null,null,{"$f":"'Regional Sudeste'!D25","v":"Empresarial"},null,null,{"$f":"'Regional Sudeste'!E25","v":"A + H c/ obst."},null,null,{"$f":"'Regional Sudeste'!F25","v":"Grupo de municípios"},null,null,null,{"$f":"'Regional Sudeste'!G25","v":"Co-participacão"},null,null,null,{"$f":"'Regional Sudeste'!H25","v":"Coletiva"},null,null,null,{"$f":"'Regional Sudeste'!I25","v":"Ausente"}]
[]
[null,null,{"$f":"'Regional Sudeste'!C29","v":"Casa De Saúde São Bernardo S/A"}]
[null,null,{"$f":"'Regional Sudeste'!A26","v":483701191},null,null,{"$f":"'Regional Sudeste'!B26","v":"SÃO BERNARDO ALFA EMPRESARIAL ESPECIAL"},null,null,null,null,null,null,null,null,null,{"$f":"'Regional Sudeste'!D26","v":"Empresarial"},null,null,{"$f":"'Regional Sudeste'!E26","v":"A + H c/ Obst."},null,null,{"$f":"'Regional Sudeste'!F26","v":"Grupo de municípios"},null,null,null,{"$f":"'Regional Sudeste'!G26","v":"Co-participacão"},null,null,null,{"$f":"'Regional Sudeste'!H26","v":"Coletiva"},null,null,null,{"$f":"'Regional Sudeste'!I26","v":"Ausente"}]
[null,null,{"$f":"'Regional Sudeste'!A27","v":483703197},null,null,{"$f":"'Regional Sudeste'!B27","v":"SÃO BERNARDO ALFA EMPRESARIAL EXECUTIVO"},null,null,null,null,null,null,null,null,null,{"$f":"'Regional Sudeste'!D27","v":"Empresarial"},null,null,{"$f":"'Regional Sudeste'!E27","v":"A + H c/ Obst."},null,null,{"$f":"'Regional Sudeste'!F27","v":"Grupo de municípios"},null,null,null,{"$f":"'Regional Sudeste'!G27","v":"Co-participacão"},null,null,null,{"$f":"'Regional Sudeste'!H27","v":"Individual"},null,null,null,{"$f":"'Regional Sudeste'!I27","v":"Ausente"}]
[null,null,{"$f":"'Regional Sudeste'!A28","v":487089201},null,null,{"$f":"'Regional Sudeste'!B28","v":"SÃO BERNARDO AMPLO EMPRESARIAL ESPECIAL"},null,null,null,null,null,null,null,null,null,{"$f":"'Regional Sudeste'!D28","v":"Empresarial"},null,null,{"$f":"'Regional Sudeste'!E28","v":"A + H c/ Obst."},null,null,{"$f":"'Regional Sudeste'!F28","v":"Grupo de municípios"},null,null,null,{"$f":"'Regional Sudeste'!G28","v":"Co-participacão"},null,null,null,{"$f":"'Regional Sudeste'!H28","v":"Coletiva"},null,null,null,{"$f":"'Regional Sudeste'!I28","v":"Ausente"}]
[null,null,{"$f":"'Regional Sudeste'!A29","v":476608163},null,null,{"$f":"'Regional Sudeste'!B29","v":"SÃO BERNARDO AZUL EMP ESPECIAL"},null,null,null,null,null,null,null,null,null,{"$f":"'Regional Sudeste'!D29","v":"Empresarial"},null,null,{"$f":"'Regional Sudeste'!E29","v":"A + H c/ Obst."},null,null,{"$f":"'Regional Sudeste'!F29","v":"Grupo de municípios"},null,null,null,{"$f":"'Regional Sudeste'!G29","v":"Co-participacão"},null,null,null,{"$f":"'Regional Sudeste'!H29","v":"Coletiva"},null,null,null,{"$f":"'Regional Sudeste'!I29","v":"Ausente"}]
[null,null,{"$f":"'Regional Sudeste'!A30","v":476609161},null,null,{"$f":"'Regional Sudeste'!B30","v":"SÃO BERNARDO AZUL EMP EXECUTIVO"},null,null,null,null,null,null,null,null,null,{"$f":"'Regional Sudeste'!D30","v":"Empresarial"},null,null,{"$f":"'Regional Sudeste'!E30","v":"A + H c/ Obst."},null,null,{"$f":"'Regional Sudeste'!F30","v":"Grupo de municípios"},null,null,null,{"$f":"'Regional Sudeste'!G30","v":"Co-participacão"},null,null,null,{"$f":"'Regional Sudeste'!H30","v":"Individual"},null,null,null,{"$f":"'Regional Sudeste'!I30","v":"Ausente"}]
[null,null,{"$f":"'Regional Sudeste'!A31","v":477895172},null,null,{"$f":"'Regional Sudeste'!B31","v":"SÃO BERNARDO PLENO EMPRESARIAL ESPECIAL"},null,null,null,null,null,null,null,null,null,{"$f":"'Regional Sudeste'!D31","v":"Empresarial"},null,null,{"$f":"'Regional Sudeste'!E31","v":"A + H c/ Obst."},null,null,{"$f":"'Regional Sudeste'!F31","v":"Grupo de municípios"},null,null,null,{"$f":"'Regional Sudeste'!G31","v":"Co-participacão"},null,null,null,{"$f":"'Regional Sudeste'!H31","v":"Coletiva"},null,null,null,{"$f":"'Regional Sudeste'!I31","v":"Ausente"}]
[null,null,{"$f":"'Regional Sudeste'!A32","v":477896171},null,null,{"$f":"'Regional Sudeste'!B32","v":"SÃO BERNARDO PLENO EMPRESARIAL EXECUTIVO"},null,null,null,null,null,null,null,null,null,{"$f":"'Regional Sudeste'!D32","v":"Empresarial"},null,null,{"$f":"'Regional Sudeste'!E32","v":"A + H c/ Obst."},null,null,{"$f":"'Regional Sudeste'!F32","v":"Grupo de municípios"},null,null,null,{"$f":"'Regional Sudeste'!G32","v":"Co-participacão"},null,null,null,{"$f":"'Regional Sudeste'!H32","v":"Individual"},null,null,null,{"$f":"'Regional Sudeste'!I32","v":"Ausente"}]
[null,null,{"$f":"'Regional Sudeste'!A33","v":469479131},null,null,{"$f":"'Regional Sudeste'!B33","v":"SAO BERNARDO PREMIUM EMP ESP (PRIMEVO)"},null,null,null,null,null,null,null,null,null,{"$f":"'Regional Sudeste'!D33","v":"Empresarial"},null,null,{"$f":"'Regional Sudeste'!E33","v":"A + H c/ Obst."},null,null,{"$f":"'Regional Sudeste'!F33","v":"Grupo de municípios"},null,null,null,{"$f":"'Regional Sudeste'!G33","v":"Co-participacão"},null,null,null,{"$f":"'Regional Sudeste'!H33","v":"Coletiva"},null,null,null,{"$f":"'Regional Sudeste'!I33","v":"Ausente"}]
[null,null,{"$f":"'Regional Sudeste'!A34","v":493067223},null,null,{"$f":"'Regional Sudeste'!B34","v":"SÃO BERNARDO REGIONAL VIX APARTAMENTO EMPRESARIAL"},null,null,null,null,null,null,null,null,null,{"$f":"'Regional Sudeste'!D34","v":"Empresarial"},null,null,{"$f":"'Regional Sudeste'!E34","v":"A + H c/ Obst."},null,null,{"$f":"'Regional Sudeste'!F34","v":"Grupo de municípios"},null,null,null,{"$f":"'Regional Sudeste'!G34","v":"Co-participacão"},null,null,null,{"$f":"'Regional Sudeste'!H34","v":"Individual"},null,null,null,{"$f":"'Regional Sudeste'!I34","v":"Ausente"}]
[null,null,{"$f":"'Regional Sudeste'!A35","v":493064229},null,null,{"$f":"'Regional Sudeste'!B35","v":"SÃO BERNARDO REGIONAL VIX ENFERMARIA EMPRESARIAL"},null,null,null,null,null,null,null,null,null,{"$f":"'Regional Sudeste'!D35","v":"Empresarial"},null,null,{"$f":"'Regional Sudeste'!E35","v":"A + H c/ Obst."},null,null,{"$f":"'Regional Sudeste'!F35","v":"Grupo de municípios"},null,null,null,{"$f":"'Regional Sudeste'!G35","v":"Co-participacão"},null,null,null,{"$f":"'Regional Sudeste'!H35","v":"Coletiva"},null,null,null,{"$f":"'Regional Sudeste'!I35","v":"Ausente"}]
[null,null,{"$f":"'Regional Sudeste'!A36","v":476212166},null,null,{"$f":"'Regional Sudeste'!B36","v":"SÃO BERNARDO WAY ESPECIAL"},null,null,null,null,null,null,null,null,null,{"$f":"'Regional Sudeste'!D36","v":"Empresarial"},null,null,{"$f":"'Regional Sudeste'!E36","v":"A + H c/ Obst."},null,null,{"$f":"'Regional Sudeste'!F36","v":"Grupo de municípios"},null,null,null,{"$f":"'Regional Sudeste'!G36","v":"Co-participacão"},null,null,null,{"$f":"'Regional Sudeste'!H36","v":"Coletiva"},null,null,null,{"$f":"'Regional Sudeste'!I36","v":"Ausente"}]
[null,null,{"$f":"'Regional Sudeste'!A37","v":476211168},null,null,{"$f":"'Regional Sudeste'!B37","v":"SÃO BERNARDO WAY EXECUTIVO"},null,null,null,null,null,null,null,null,null,{"$f":"'Regional Sudeste'!D37","v":"Empresarial"},null,null,{"$f":"'Regional Sudeste'!E37","v":"A + H c/ Obst."},null,null,{"$f":"'Regional Sudeste'!F37","v":"Grupo de municípios"},null,null,null,{"$f":"'Regional Sudeste'!G37","v":"Co-participacão"},null,null,null,{"$f":"'Regional Sudeste'!H37","v":"Individual"},null,null,null,{"$f":"'Regional Sudeste'!I37","v":"Ausente"}]

{"sheet":"INPUTS","index":1,"n_rows":177,"n_cols":9,"rows_kept":177,"cut":false,"hidden":true,"merged":[]}
["CID's",null,"AGENCIAMENTO","COMISSÃO VITALÍCIA","UNIDADE FEDERATIVA",null,"Condição","Acomodação","Sexo"]
["A00 - A09  / Doenças infecciosas intestinais ","SIM","50% + 2%",0,"AC  - Acre ","AC  ","Afastados","Não sei","Não sei"]
["A15 - A19  / Tuberculose ","NÃO","75% + 3%",{"$f":"D2+0.01","v":0.01},"AL  - Alagoas ","AL  ","Gestantes","Enfermaria","Masculino"]
["A20 - A28  / Algumas doenças bacterianas zoonóticas ","NÃO SEI","100% + 5%",{"$f":"D3+0.01","v":0.02},"AM - Amazonas","AM ","Em tratamento de alta complexidade","Apartamento","Feminino"]
["A30 - A49  / Outras doenças bacterianas ","Haverá",null,0.03,"AP  - Amapá ","AP  ","Em internação domiciliar","Ausente"]
["A50 - A64  / Infecções predominantemente sexuais ","Não haverá",null,0.04,"BA - Bahia","BA ","Em internação hospitalar"]
["A65 - A69  / Outras doenças espiroquetas ",null,null,0.05,"CE - Ceará ","CE "]
["A70 - A74  / Outras doenças causadas por clamídias ",null,null,null,"DF - Distrito Federal","DF "]
["A75 - A79  / Riekettsioses ",null,null,null,"ES - Espírito Santo","ES "]
["A80 - A89 / Infecções virais do sistema nervoso central ",null,null,null,"GO - Goiás","GO "]
["A90 - A99  / Febres por arbovírus e febres hemorrágicas virais ",null,null,null,"MA - Maranhão ","MA "]
["B00 - B09  / Infecções virais caracterizados p/ lesões da pele e mucosas ",null,null,null,"MG - Minas Gerais","MG "]
["B15 - B19  / Hepatite viral ",null,null,null,"MS - Mato Grosso do Sul","MS "]
["B20 - B24  / Doenças pelo vírus da imunodeficiência humana (HIV) ",null,null,null,"MT - Mato Grosso","MT "]
["B25 - B34  / Outras doenças por vírus ",null,null,null,"PA  - Pará ","PA  "]
["B35 - B39  / Micoses ",null,null,null,"PB  - Paraíba ","PB  "]
["B40  / Blastomicose ",null,null,null,"PE  - Pernambuco ","PE  "]
["B41 - B49  / Micoses ",null,null,null,"PI - Piauí","PI "]
["B50 - B56  / Doenças devidas a protozoários ",null,null,null,"PR - Paraná","PR "]
["B57  / Doença de Chagas ",null,null,null,"RJ - Rio de Janeiro","RJ "]
["B58 - B64  / Doenças devidas a protozoários ",null,null,null,"RN  - Rio Grande do Norte ","RN  "]
["B90 - B94  / Seqüelas de doenças infecciosas e parasitárias ",null,null,null,"RO  - Rondônia","RO  "]
["C00 - C14  / Neopl. Malignas (os) do lábio, cavidade oral e faringe ",null,null,null,"RR  - Roraima ","RR  "]
["C15 - C26  / Neopl. Malignas (os) dos órgãos digestivos ",null,null,null,"RS - Rio Grande do Sul","RS "]
["C30 - C39  / Do aparelho respiratório e dos órgãos intratorácicos ",null,null,null,"SC - Santa Catarina","SC "]
["C40 - C41  / Neopl. Malignas (os) dos ossos e das cartilagens articulares ",null,null,null,"SE - Sergipe","SE "]
["C43 - C44  / Melanoma e outras (os) neoplasias malignas da pele ",null,null,null,"SP - São Paulo","SP "]
["C45 - C49  / Neopl. Malignas (os) do tecido mesotelial e tecidos moles ",null,null,null,"TO  - Tocantins ","TO  "]
["C50  / Neopl. Malignas (os) da mama "]
["C51 - C58  / Neopl. Malignas (os) dos órgãos genitais femininos "]
["C60 - C63  / Neopl. Malignas (os) dos órgãos genitais masculinos "]
["C64 - C68  / Neopl. Malignas (os) do trato urinário "]
["C69 - C72  / Dos olhos, do encéfalo e de outr/part. Do sist. Nerv. Central "]
["C73 - C75  / Neopl. Malign. Da tiróide e de outras glândulas endócrinas "]
["C76 - C80  / Das localizações ml definid, secundár. e localiz.n/especific. "]
["C81 - C96  / Do tecido linfático, hemotopoético e de tecidos correlatos "]
["C97  / De localizações múltiplas independ. (primárias) "]
["D00 - D09  / Neoplasias (tumores) in situ "]
["D10 - D36  / Neoplasias (tumores) benignas (os) "]
["D45  / Policitemia Vera "]
["D46  / Síndromes mielodisplásicas "]
["C20  / Neoplasma do Reto "]
["D56  / Talassemia "]
["D57  / Transtornos falciformes "]
["D58  / Outras anemias hemolíticas hereditárias "]
["D59  / Anemia hemolítica adquirida "]
["D60 - D64  / Anemias aplásticas e outras anemias "]
["D65 - D69  / Defeitos da coagulação e outras afecções hemorrágicas "]
["D70 - D77  / Outras doenças do sangue e dos órgãos hematopoéticos "]
["D80 - D89  / Alguns transtornos q/compromet. o mecanismo imunitário "]
["E00 - E07  / Transtornos da glândula tireóide "]
["E10 - E14  / Diabetes mellitus – alta "]
["E10 - E14  / Diabetes mellitus – média "]
["E10 - E14  / Diabetes mellitus – baixa "]
["E15 - E16  / Outros transtornos da regulaç. [] da gilcs. e da secr. pancr. intn. "]
["E20 - E35  / Transtornos de outras glândulas endócrinas "]
["E66  / Obesidade Mórbida "]
["F00 - F99  / Transtornos Mentais e Comportamentais "]
["G00 - G09  / Doenças inflamatórias do sistema nervoso "]
["G10 - G13  / Atrofias sistêmicas que afet. principalm. o sist. nerv. central "]
["G20 - G26  / Doenças extrapiramidais e transtornos do movimento "]
["G30 - G32  / Outras doenças degenerativas do sistema nervoso "]
["G35 - G37  / Doenças desmielizantes do sistema nervoso central "]
["G40 - G44  / Transtornos ppisódicos e paroxísticos"]
["G45  / Acidentes vascul. cerebr. insquêmics. transit. e síndr. correlatas "]
["G46  / Síndr. vasculr. cerebr. Q/ocorr. d/doen. cerbrovsc. (160 - 167 +) "]
["G50 - G59  / Transtornos dos nervos, das raízes e dos plexos nervosos "]
["G60 - G64  / Polineuropatias e outros transtornos do sist. nerv. periférico "]
["G70 - G73  / Doenças da junção mioneural e dos músculos "]
["G80 - G83  / Paralisia cerebral e outras síndromes paralíticas "]
["G91  / Hidrocefalia "]
["H15 - H22  / Transtrn. da esclerótica, da córnea, da íris e do corpo ciliar "]
["H25 - H28  / Transtornos do cristalino "]
["H25 - H28  / Transtornos da coróide e da retina "]
["H40 - H42  / Glaucoma "]
["H43 - H45  / Transtornos do humor vítreo e do globo ocular "]
["H46 - H48  / Transtornos do nervo óptico e das vias ópticas "]
["H49 - H52  / Transtrs.ds. múscls. oclrs, /movm. bnclr/ acmdç./ refrç "]
["H 52.1  / Miopia "]
["H53 - H54  / Transtornos visuais e cegueira "]
["H55 - H59  / Outros transtornos do olho e anexos "]
["H60 - H62  / Doenças do ouvido externo "]
["H65 - H75  / Doenças do ouvido médio e da mastóide "]
["H80 - H83  / Doenças do ouvido interno "]
["H90 - H95  / Outros transtornos do ouvido "]
["I00 - I02  / Febre reumática aguda "]
["I05 - I09  / Doenças reumáticas crônicas do coração "]
["I10 - I15  / Doenças hipertensivas "]
["I20 - I25  / Doenças isquêmicas do coração "]
["I26 - I28  / Doença cardíaca pulmonar e doenças da circ. pulmonar "]
["I30 - I52  / Outras formas de doença do coração "]
["I20 - I25  / Doenças isquêmicas do coração "]
["I30 - I52  / Outras formas de doenças do coração "]
["I60 - I69  / Doenças cerebrovasculares "]
["I70 - I79  / Doenças das artérias e dos capilares "]
["I80 - I89  / Doenç. ds veias/vasos linfát. e/gângl. linfát, n/class. outr. part. "]
["J30 - J39  / Outras doenças das vias aéreas superiores "]
["J40 - J46  / Doenças crônicas das vias aéreas inferiores "]
["J47  / Bronquectasia "]
["J60 - J70  / Doenças pulmonares devidas a agentes externos "]
["J80 - J84  / Outras doenç. respir. que afetam principalmente o interstício "]
["J85 - J86  / Afecções necróticas/supurativas das vias aéreas inferiores "]
["J90 - J94  / Outras doenças da pleura "]
["J95 - J99  / Outras doenças do aparelho respiratório "]
["K00 - K14  / Doenças da cavidade oral, /glândulas salivares e/maxilares "]
["K20 - K31  / Doenças do esôfago, do estômago e do duodeno -"]
["K40 - K46  / Hérnia "]
["K50 - K52  / Enterites e colites não infecciosas "]
["K55 - K63  / Outras doenças dos intestinos "]
["K65 - K67  / Doenças do peritônio "]
["K70 - K77  / Doenças do fígado "]
["K80 - K87  / Transtornos da vesícula biliar, das vias biliares e do pâncreas "]
["K90 - K93  / Outras doenças do aparelho digestivo "]
["L00 - L08  / Infecções da pele e do tecido subcutâneo "]
["L10 - L14  / Afecções bolhosas "]
["L20 - L30  / Dermatite e eczema "]
["L40 - L45  / Afecções pápulo – descmativas "]
["L50 - L54  / Urticária e eritema "]
["L55 - L59  / Transtornos da pele/ tecido subcutâneo relacion. c/radiação "]
["L60 - L75  / Afecções dos anexos da pele "]
["L80 - L99  / Outras afecções da pele e do tecido subcutâneo "]
["M00 - M25  / Artropatias "]
["M30 - M36  / Doenças sistêmicas do tecido conjuntivo "]
["M40 - M54  / Dorsopatias "]
["M60 - M79  / Transtornos dos tecidos moles "]
["M80 - M94  / Osteopatias e condropatias "]
["M95 - M99  / Outros transt. do sistema osteomolecular/do tecido conjuntivo "]
["N00 - N08  / Doenças glomerulares "]
["N10 - N16  / Doenças renais túbulo-intersticiais "]
["N17 - N19  / Insuficiência renal "]
["N20 - N23  / Calculose renal "]
["N25 - N29  / Outros transtornos do rim e do ureter "]
["N30 - N39  / Outras doenças do aparelho urinário "]
["N40 - N51  / Doenças dos órgãos genitais masculinos "]
["N60 - N64  / Doenças da mama "]
["N70 - N77  / Doenças inflamatórias dos órgãos pélvicos femininos "]
["N80 - N99  / Transtornos não inflamatórios do trato genital feminino "]
["O00 - O08  / Gravidez que termina em aborto "]
["O10 - O16  / Edema proteinúr/ transt. hipersns. da grav. no part. no puerper. "]
["O20 - 029  / Outros transtornos maternos relac. predomintmte c/gravidez "]
["O30 - O48  / Assist. prest. a mãe p/mot. Lig. feto/cavid. amniótica/probl. Parto "]
["O60 - O75  / Complicações do trabalho de parto e do parto "]
["O80 - O84  / Parto "]
["O85 - O92  / Complicações relacionadas predntmente com o puerpério "]
["O95 - O98  / Outras afecções obstétrics não classificadas em outra parte"]
["O99  / Ots. doenç. mãe. clss. outr. pte, que complc. grvdz, part, puerpério "]
["P00 - P04  / Recém nasc. afet. p/fat. maternos/cmpl. grav/trab/part e parto "]
["P05 - P08  / Transt. relac. c/a duração da gestação e com o cresc. Fetal "]
["P10 - P15  / Traumatismo ocorrido durante o nascimento "]
["P20 - P29  / Trnstrn. respiratrs/cardiovasculares especificas períod. Perinatal "]
["P35 - P39  / Infecções específicas do período perinatal "]
["P50 - P61  / Transtornos hemorrágicos e hematológicos do ft/rcm nasc. "]
["P70 - P74  / Transt. endócrs/metablics transitór. especif. do ft/rcm nascido "]
["P75 - P78  / Transtornos do aparelho digestivo do feto/recém nascido "]
["P80 - P83  / Afecç. que cmprm. tegmen/regulç. térm. do feto/recém nasc. "]
["P90 - P95  / Outros transtornos originados no período perinatal "]
["Q00 - Q07  / Malformações congênitas do sistema nervoso "]
["Q10 - Q18  / Malfomaç. congênit. Do olho, do ouvido, da face, do pesc. "]
["Q20 - Q28  / Malformações congênitas do aparelho circulatório "]
["Q30 - Q34  / Malformações congênitas do aparelho respiratório "]
["Q35 - Q37  / Fenda labial e fenda palatina "]
["Q38 - Q45  / Outras malformações do aparelho digestivo "]
["Q50 - Q56  / Malformações congênitas dos órgãos genitais "]
["Q60 - Q64  / Malformações congênitas do aparelho urinário "]
["Q65 - Q79  / Malformaç/deformid. Congênitas do sistema osteomolecular "]
["Q80 - Q89  / Outras malformações congênitas "]
["Q90 - Q99  / Anomalias cromossômicas não classificadas em outra parte "]
["T80 - T88  / Complicaç. de cuidads médicas e cirurg. n/class. outr. Parte "]
["T90 - T98  / Seqüelas de traumatismos, de intox e de outr. cons. caus. ext. "]
["X50 - X57  / Excesso de esforços, viagens e privações "]
["Y40 - Y82  / Complicações de assistência médica e cirúrgica "]
["Y83 - Y84  / Reaç. anorm. ao pac. compl. tardia caus. prc. cirg. proc. med. sm. ac. "]
["Y85 - Y89  / Seqüelas de causas de morbidade e mortalidade "]
["Z00 - Z99  / Fatores que exercem influências sobre o Estado de Saúde e o contato com os serviços de Saúde."]
["Z94  / Pessoas com órgãos e tecidos transplantados "]
[" / Pessoas que necessitam realizar um transplante de rim "]
[" / Pessoas que necessitam realizar um transplante de córnea "]

{"sheet":"Regional Sudeste","index":2,"n_rows":37,"n_cols":9,"rows_kept":37,"cut":false,"hidden":true,"merged":[]}
["Registro do Plano","Nome Comercial","Operadora","Tipo de Contratação","Segmentação","Abrangência","Tipo de Fator Moderador","Tipo de Acomodação","Reembolso (Livre Escolha)"]
[475603167,"AMBULATORIAL I ES","Samp Espírito Santo Assistência Médica S.A.","Empresarial","Ambulatorial","Estadual","Ausente","Não se aplica","Ausente"]
[478358171,"AMBULATORIAL I ES PARTICIPATIVO","Samp Espírito Santo Assistência Médica S.A.","Empresarial","Ambulatorial","Estadual","Co-participacão","Não se aplica","Ausente"]
[483131194,"ESSENCIAL SUL COM COPART QC","Samp Espírito Santo Assistência Médica S.A.","Empresarial","A + H c/ obst.","Grupo de municípios","Co-participacão","Coletiva","Ausente"]
[483130196,"ESSENCIAL SUL COM COPART QP","Samp Espírito Santo Assistência Médica S.A.","Empresarial","A + H c/ obst.","Grupo de municípios","Co-participacão","Individual","Ausente"]
[489863210,"ESSENCIAL SUL II COM COPART QC","Samp Espírito Santo Assistência Médica S.A.","Empresarial","A + H c/ obst.","Grupo de municípios","Co-participacão","Coletiva","Ausente"]
[489864218,"ESSENCIAL SUL II COM COPART QP","Samp Espírito Santo Assistência Médica S.A.","Empresarial","A + H c/ obst.","Grupo de municípios","Co-participacão","Individual","Ausente"]
[483133191,"ESSENCIAL VIX COM COPART QC","Samp Espírito Santo Assistência Médica S.A.","Empresarial","A + H c/ obst.","Grupo de municípios","Co-participacão","Coletiva","Ausente"]
[483135197,"IDEAL COM COPART QC","Samp Espírito Santo Assistência Médica S.A.","Empresarial","A + H c/ obst.","Grupo de municípios","Co-participacão","Coletiva","Ausente"]
[483134199,"IDEAL COM COPART QP","Samp Espírito Santo Assistência Médica S.A.","Empresarial","A + H c/ obst.","Grupo de municípios","Co-participacão","Individual","Ausente"]
[484956206,"IDEAL ES COM COPART QC","Samp Espírito Santo Assistência Médica S.A.","Empresarial","A + H c/ obst.","Estadual","Co-participacão","Coletiva","Ausente"]
[484955208,"IDEAL ES COM COPART QP","Samp Espírito Santo Assistência Médica S.A.","Empresarial","A + H c/ obst.","Estadual","Co-participacão","Individual","Ausente"]
[487130208,"SAMP EXECUTIVO NACIONAL COM COPART QC","Samp Espírito Santo Assistência Médica S.A.","Empresarial","A + H c/ obst.","Nacional","Co-participacão","Coletiva","Ausente"]
[487131206,"SAMP EXECUTIVO NACIONAL COM COPART QP","Samp Espírito Santo Assistência Médica S.A.","Empresarial","A + H c/ obst.","Nacional","Co-participacão","Individual","Ausente"]
[487129204,"SAMP NACIONAL COM COPART QC","Samp Espírito Santo Assistência Médica S.A.","Empresarial","A + H c/ obst.","Nacional","Co-participacão","Coletiva","Ausente"]
[487128206,"SAMP NACIONAL COM COPART QP","Samp Espírito Santo Assistência Médica S.A.","Empresarial","A + H c/ obst.","Nacional","Co-participacão","Individual","Ausente"]
[483127196,"SUPERIOR COM COPART QC","Samp Espírito Santo Assistência Médica S.A.","Empresarial","A + H c/ obst.","Estadual","Co-participacão","Coletiva","Ausente"]
[483128194,"SUPERIOR COM COPART QP","Samp Espírito Santo Assistência Médica S.A.","Empresarial","A + H c/ obst.","Estadual","Co-participacão","Individual","Ausente"]
[489562212,"SUPERIOR MAIS COM COPART QC","Samp Espírito Santo Assistência Médica S.A.","Empresarial","A + H c/ obst.","Estadual","Co-participacão","Coletiva","Ausente"]
[489558214,"SUPERIOR MAIS COM COPART QP","Samp Espírito Santo Assistência Médica S.A.","Empresarial","A + H c/ obst.","Estadual","Co-participacão","Individual","Ausente"]
[489556218,"SUPERIOR MAIS SEM COPART QC","Samp Espírito Santo Assistência Médica S.A.","Empresarial","A + H c/ obst.","Estadual","Ausente","Coletiva","Ausente"]
[489557216,"SUPERIOR MAIS SEM COPART QP","Samp Espírito Santo Assistência Médica S.A.","Empresarial","A + H c/ obst.","Estadual","Ausente","Individual","Ausente"]
[483129192,"SUPERIOR SEM COPART QC","Samp Espírito Santo Assistência Médica S.A.","Empresarial","A + H c/ obst.","Estadual","Ausente","Coletiva","Ausente"]
[483126198,"SUPERIOR SEM COPART QP","Samp Espírito Santo Assistência Médica S.A.","Empresarial","A + H c/ obst.","Estadual","Ausente","Individual","Ausente"]
[485448209,"VITAL COM COPART QC","Samp Espírito Santo Assistência Médica S.A.","Empresarial","A + H c/ obst.","Grupo de municípios","Co-participacão","Coletiva","Ausente"]
[483701191,"SÃO BERNARDO ALFA EMPRESARIAL ESPECIAL","Casa De Saúde São Bernardo S/A","Empresarial","A + H c/ Obst.","Grupo de municípios","Co-participacão","Coletiva","Ausente"]
[483703197,"SÃO BERNARDO ALFA EMPRESARIAL EXECUTIVO","Casa De Saúde São Bernardo S/A","Empresarial","A + H c/ Obst.","Grupo de municípios","Co-participacão","Individual","Ausente"]
[487089201,"SÃO BERNARDO AMPLO EMPRESARIAL ESPECIAL","Casa De Saúde São Bernardo S/A","Empresarial","A + H c/ Obst.","Grupo de municípios","Co-participacão","Coletiva","Ausente"]
[476608163,"SÃO BERNARDO AZUL EMP ESPECIAL","Casa De Saúde São Bernardo S/A","Empresarial","A + H c/ Obst.","Grupo de municípios","Co-participacão","Coletiva","Ausente"]
[476609161,"SÃO BERNARDO AZUL EMP EXECUTIVO","Casa De Saúde São Bernardo S/A","Empresarial","A + H c/ Obst.","Grupo de municípios","Co-participacão","Individual","Ausente"]
[477895172,"SÃO BERNARDO PLENO EMPRESARIAL ESPECIAL","Casa De Saúde São Bernardo S/A","Empresarial","A + H c/ Obst.","Grupo de municípios","Co-participacão","Coletiva","Ausente"]
[477896171,"SÃO BERNARDO PLENO EMPRESARIAL EXECUTIVO","Casa De Saúde São Bernardo S/A","Empresarial","A + H c/ Obst.","Grupo de municípios","Co-participacão","Individual","Ausente"]
[469479131,"SAO BERNARDO PREMIUM EMP ESP (PRIMEVO)","Casa De Saúde São Bernardo S/A","Empresarial","A + H c/ Obst.","Grupo de municípios","Co-participacão","Coletiva","Ausente"]
[493067223,"SÃO BERNARDO REGIONAL VIX APARTAMENTO EMPRESARIAL","Casa De Saúde São Bernardo S/A","Empresarial","A + H c/ Obst.","Grupo de municípios","Co-participacão","Individual","Ausente"]
[493064229,"SÃO BERNARDO REGIONAL VIX ENFERMARIA EMPRESARIAL","Casa De Saúde São Bernardo S/A","Empresarial","A + H c/ Obst.","Grupo de municípios","Co-participacão","Coletiva","Ausente"]
[476212166,"SÃO BERNARDO WAY ESPECIAL","Casa De Saúde São Bernardo S/A","Empresarial","A + H c/ Obst.","Grupo de municípios","Co-participacão","Coletiva","Ausente"]
[476211168,"SÃO BERNARDO WAY EXECUTIVO","Casa De Saúde São Bernardo S/A","Empresarial","A + H c/ Obst.","Grupo de municípios","Co-participacão","Individual","Ausente"]